bitfinex/quotes_SOLUSD_20251119
["timestamp","ask_amount","ask_price","bid_price","bid_amount"]
[1763551777120,2.83148135,139.25,139.23,2.37]
[1763551777331,2.83148135,139.25,139.23,0.67]
[1763551777521,2.83148135,139.25,139.24,1.7]
[1763551777723,0.65,139.24,139.2,0.67]
[1763551777925,0.71510297,139.27,139.21,1.7]
[1763551778106,2.11637838,139.24,139.21,1.7]
[1763551778422,2.11637838,139.24,139.21,2.37]
[1763551778630,2.11637838,139.24,139.22,0.67]
[1763551778804,1.36510297,139.27,139.22,0.67]
[1763551779010,2.11637838,139.25,139.22,0.67]
[1763551779205,2.11637838,139.24,139.22,0.67]
[1763551779823,2.11637838,139.24,139.21,2.37]
[1763551780232,2.11637838,139.24,139.22,0.67]
[1763551780432,2.11637838,139.23,139.21,2.37]
[1763551781007,2.11637838,139.23,139.21,1.7]
[1763551781338,2.11637838,139.23,139.22,1.7]
[1763551782234,0.65,139.24,139.22,1.7]
[1763551782540,2.11637838,139.24,139.23,0.67]
[1763551782842,2.11637838,139.24,139.22,1.7]
[1763551782843,2.76637838,139.24,139.22,1.7]
[1763551783040,2.11637838,139.23,139.22,1.7]
[1763551783736,2.11637838,139.24,139.22,0.67]
[1763551783933,2.11637838,139.24,139.19,1.93593088]
[1763551783934,2.76637838,139.24,139.21,2.37]
[1763551784134,2.11637838,139.23,139.21,2.37]
[1763551784335,2.11637838,139.22,139.19,1.93593088]
[1763551784645,10.5818919,139.2,139.19,1.93593088]
[1763551784941,28.7028519,139.2,139.19,1.93593088]
[1763551785241,20.88733838,139.2,139.19,1.93593088]
[1763551786015,18.12096,139.2,139.19,1.93593088]
[1763551786251,0.65,139.22,139.19,1.93593088]
[1763551786542,2.11637838,139.21,139.19,1.93593088]
[1763551786711,2.76637838,139.2,139.19,1.93593088]
[1763551788637,2.11637838,139.2,139.19,2.60593088]
[1763551788939,18.83606297,139.23,139.19,2.60593088]
[1763551789143,2.11637838,139.22,139.2,0.67]
[1763551790047,2.11637838,139.21,139.2,0.67]
[1763551790417,2.11637838,139.21,139.19,3.63593088]
[1763551790418,2.11637838,139.21,139.19,1.93593088]
[1763551790637,2.11637838,139.21,139.19,2.59593088]
[1763551790844,2.11637838,139.21,139.2,0.66]
[1763551791044,0.71510297,139.23,139.2,0.66]
[1763551791219,2.11637838,139.22,139.2,0.66]
[1763551793628,1.42510297,139.24,139.2,0.66]
[1763551793821,2.11637838,139.22,139.2,0.66]
[1763551794835,2.11637838,139.21,139.2,0.66]
[1763551797732,2.11637838,139.21,139.19,4.29593088]
[1763551798128,1.42510297,139.23,139.2,0.66]
[1763551798432,2.11637838,139.21,139.19,4.29593088]
[1763551798754,2.11637838,139.2,139.19,3.63593088]
[1763551799251,2.11637838,139.2,139.19,4.29593088]
[1763551799458,1.7,139.28,139.19,4.59593087]
[1763551799651,2.11637838,139.2,139.19,5.63593087]
[1763551800224,2.11637838,139.2,139.19,1.93593088]
[1763551800422,2.11637838,139.2,139.19,3.63593088]
[1763551800642,2.11637838,139.2,139.19,1.93593088]
[1763551800848,3.31252534,139.2,139.19,1.93593088]
[1763551802448,18.12096,139.25,139.19,3.93593087]
[1763551802650,3.31252534,139.2,139.19,3.93593087]
[1763551803263,3.31252534,139.21,139.19,3.93593087]
[1763551803465,3.31252534,139.21,139.2,1.7]
[1763551804446,3.31252534,139.21,139.2,3.69999999]
[1763551805151,3.31252534,139.21,139.2,1.7]
[1763551805544,3.31252534,139.21,139.2,3.69999999]
[1763551805744,3.31252534,139.21,139.2,1.7]
[1763551806654,3.31252534,139.21,139.19,1.93593088]
[1763551806858,3.31252534,139.2,139.19,1.93593088]
[1763551812671,24.74601068,139.2,139.19,1.93593088]
[1763551814042,21.43348534,139.2,139.19,1.93593088]
[1763551818868,3.31252534,139.2,139.19,1.93593088]
[1763551822169,6.62505068,139.2,139.19,1.93593088]
[1763551822876,24.74601068,139.2,139.19,1.93593088]
[1763551824383,25.23601068,139.2,139.19,1.93593088]
[1763551824554,3.31252534,139.17,139.16,0.1]
[1763551825480,21.43348534,139.2,139.16,0.1]
[1763551825667,3.31252534,139.17,139.16,0.1]
[1763551827160,21.43348534,139.17,139.16,0.1]
[1763551827377,21.43348534,139.17,139.1,0.66]
[1763551827378,9.78882769,139.15,139.07,1.99999999]
[1763551827570,27.90978769,139.16,139.06,0.66]
[1763551827571,18.12096,139.12,139.09,1.99999999]
[1763551827768,9.78882769,139.18,139.1,2.65999999]
[1763551827973,9.78882769,139.18,139.11,1.99999999]
[1763551827974,18.12096,139.17,139.11,1.99999999]
[1763551828183,3.31252534,139.14,139.11,2.65999999]
[1763551828485,3.31252534,139.14,139.12,0.66]
[1763551828987,3.31252534,139.14,139.13,1.99999999]
[1763551829380,3.31252534,139.14,139.13,2.65999999]
[1763551830163,3.31252534,139.15,139.13,2.65999999]
[1763551830382,3.31252534,139.15,139.14,2.65999999]
[1763551830780,3.31252534,139.16,139.14,2.65999999]
[1763551831091,3.31252534,139.19,139.16,1.99999999]
[1763551831300,1.7,139.23,139.18,1.99999999]
[1763551831466,3.31252534,139.19,139.18,1.99999999]
[1763551831666,3.31252534,139.19,139.18,2.65999999]
[1763551833274,1.7,139.23,139.18,0.66]
[1763551833475,3.31252534,139.2,139.19,0.66]
[1763551833683,3.31252534,139.2,139.19,2.65999999]
[1763551834005,3.31252534,139.2,139.19,0.66]
[1763551834303,3.31252534,139.2,139.19,2.65999999]
[1763551837294,3.31252534,139.2,139.19,1.99999999]
[1763551837874,3.31252534,139.2,139.19,2.65999999]
[1763551838495,3.31252534,139.2,139.18,1.99999999]
[1763551838801,3.31252534,139.19,139.18,1.99999999]
[1763551839501,3.31252534,139.19,139.18,2.65999999]
[1763551842309,3.31252534,139.21,139.19,1.99999999]
[1763551842488,3.31252534,139.21,139.2,1.99999999]
[1763551842807,3.31252534,139.21,139.2,2.65999999]
[1763551843975,18.12096,139.25,139.2,2.65999999]
[1763551844182,3.31252534,139.22,139.21,2.65999999]
[1763551846296,18.12096,139.25,139.21,2.65999999]
[1763551846604,3.31252534,139.22,139.21,2.65999999]
[1763551846823,3.31252534,139.22,139.21,1.99999999]
[1763551847390,3.31252534,139.22,139.21,2.65999999]
[1763551849013,3.31252534,139.23,139.21,2.65999999]
[1763551849188,3.31252534,139.23,139.22,2.65999999]
[1763551850520,0.39,139.27,139.22,2.65999999]
[1763551850707,3.31252534,139.23,139.22,1.99999999]
[1763551851302,3.31252534,139.23,139.22,2.71999999]
[1763551854413,18.51096,139.27,139.22,2.71999999]
[1763551854612,18.51096,139.27,139.23,1.99999999]
[1763551854791,18.51096,139.27,139.23,2.71999999]
[1763551855690,3.31252534,139.24,139.23,2.71999999]
[1763551858512,3.31252534,139.24,139.23,0.72]
[1763551858819,3.31252534,139.24,139.23,2.71999999]
[1763551862834,2.118359,139.24,139.23,2.71999999]
[1763551864853,2.118359,139.24,139.22,1.99999999]
[1763551865053,2.118359,139.23,139.21,2.71999999]
[1763551865211,0.39,139.26,139.22,1.99999999]
[1763551865411,2.118359,139.23,139.22,2.71999999]
[1763551869548,2.118359,139.23,139.2,2.71999999]
[1763551869754,18.12096,139.25,139.2,2.71999999]
[1763551869755,2.118359,139.21,139.2,2.71999999]
[1763551871335,2.118359,139.21,139.2,1.99999999]
[1763551872018,2.118359,139.21,139.2,2.71999999]
[1763551872324,2.118359,139.21,139.16,1.99999999]
[1763551872325,2.508359,139.21,139.16,1.99999999]
[1763551872643,2.118359,139.17,139.16,1.99999999]
[1763551872819,2.118359,139.17,139.16,2.71999999]
[1763551876019,2.118359,139.17,139.16,1.99999999]
[1763551876419,2.118359,139.17,139.15,1.99999999]
[1763551876641,2.118359,139.16,139.13,2.71999999]
[1763551876942,2.118359,139.14,139.13,1.99999999]
[1763551877648,2.118359,139.14,139.13,2.71999999]
[1763551882348,2.118359,139.14,139.13,1.99999999]
[1763551882654,2.118359,139.14,139.1,2.69999999]
[1763551882655,2.508359,139.14,139.1,2.69999999]
[1763551882831,2.118359,139.11,139.1,2.69999999]
[1763551883846,2.118359,139.11,139.1,1.99999999]
[1763551883847,2.508359,139.11,139.1,1.99999999]
[1763551884053,2.118359,139.11,139.1,1.99999999]
[1763551884745,2.118359,139.13,139.12,1.99999999]
[1763551885449,2.118359,139.13,139.12,2.68999999]
[1763551885847,2.118359,139.13,139.12,1.99999999]
[1763551886159,2.118359,139.13,139.11,1.99999999]
[1763551886346,2.118359,139.12,139.11,1.99999999]
[1763551887161,2.118359,139.12,139.11,2.68999999]
[1763551888747,2.118359,139.13,139.12,1.99999999]
[1763551889152,2.118359,139.14,139.12,1.99999999]
[1763551889543,2.118359,139.15,139.13,2.68999999]
[1763551889737,2.118359,139.14,139.13,2.68999999]
[1763551891155,2.118359,139.14,139.13,1.99999999]
[1763551891363,2.508359,139.14,139.12,1.99999999]
[1763551891658,2.118359,139.13,139.12,1.99999999]
[1763551893741,2.118359,139.13,139.11,2.68999999]
[1763551893937,2.118359,139.12,139.11,2.68999999]
[1763551895461,2.118359,139.13,139.12,1.99999999]
[1763551895658,2.118359,139.13,139.12,2.68999999]
[1763551900354,2.118359,139.13,139.12,1.99999999]
[1763551900871,2.118359,139.13,139.12,2.68999999]
[1763551905885,2.508359,139.13,139.11,1.99999999]
[1763551906053,2.118359,139.12,139.11,1.99999999]
[1763551906487,10.981795,139.12,139.09,1.99999999]
[1763551906699,2.118359,139.1,139.08,1.99999999]
[1763551906897,18.51096,139.11,139.07,1.99999999]
[1763551906898,20.239319,139.09,139.07,1.99999999]
[1763551907098,2.118359,139.08,139.07,1.99999999]
[1763551908297,2.508359,139.08,139.06,1.99999999]
[1763551908607,2.508359,139.07,139.05,2.09999999]
[1763551908773,2.118359,139.06,139.05,2.09999999]
[1763551908978,2.508359,139.06,139.05,0.1]
[1763551910390,2.118359,139.06,139.05,0.1]
[1763551911482,2.118359,139.06,139.05,2.79999999]
[1763551911692,2.118359,139.06,139.05,0.8]
[1763551911876,2.118359,139.06,139.05,2.79999999]
[1763551913801,18.51096,139.09,139.06,1.99999999]
[1763551913986,2.118359,139.07,139.06,1.99999999]
[1763551914185,18.51096,139.09,139.05,2.09999999]
[1763551914186,0.39,139.08,139.05,2.09999999]
[1763551914496,0.39,139.08,139.06,1.99999999]
[1763551914901,18.51096,139.09,139.06,1.99999999]
[1763551915702,2.118359,139.07,139.06,1.99999999]
[1763551916582,2.118359,139.07,139.06,2.69999999]
[1763551917005,2.118359,139.08,139.06,2.69999999]
[1763551917193,2.118359,139.08,139.07,0.7]
[1763551917395,2.118359,139.08,139.07,2.69999999]
[1763551917787,2.118359,139.08,139.06,1.99999999]
[1763551918119,2.118359,139.08,139.07,1.99999999]
[1763551918305,2.118359,139.08,139.07,2.69999999]
[1763551918613,1.7,139.14,139.09,1.99999999]
[1763551918614,20.21096,139.14,139.09,1.99999999]
[1763551918784,2.118359,139.1,139.09,2.69999999]
[1763551919377,2.118359,139.1,139.09,1.99999999]
[1763551920398,2.118359,139.1,139.08,2.69999999]
[1763551920600,2.118359,139.09,139.08,2.69999999]
[1763551922299,18.12096,139.14,139.1,1.99999999]
[1763551922504,2.118359,139.11,139.1,1.99999999]
[1763551922689,2.118359,139.11,139.1,2.69999999]
[1763551923003,3.31629262,139.11,139.1,2.69999999]
[1763551924612,18.51096,139.14,139.11,1.99999999]
[1763551924613,3.31629262,139.12,139.11,1.99999999]
[1763551925004,3.31629262,139.12,139.11,2.69999999]
[1763551927499,0.39,139.15,139.11,2.69999999]
[1763551927705,3.31629262,139.12,139.11,2.69999999]
[1763551932516,3.70629262,139.12,139.09,19.99999999]
[1763551932819,3.31629262,139.1,139.09,19.99999999]
[1763551933224,3.31629262,139.1,139.09,20.69999999]
[1763551933521,3.31629262,139.1,139.09,19.99999999]
[1763551933720,3.31629262,139.1,139.09,20.69999999]
[1763551936518,3.31629262,139.12,139.1,1.99999999]
[1763551936711,3.31629262,139.12,139.11,2.69999999]
[1763551936914,3.31629262,139.12,139.09,20.69999999]
[1763551937115,3.31629262,139.1,139.09,19.99999999]
[1763551937718,3.31629262,139.1,139.09,20.69999999]
[1763551938295,3.31629262,139.11,139.09,20.69999999]
[1763551938498,3.31629262,139.11,139.1,2.69999999]
[1763551943407,3.31629262,139.12,139.11,1.99999999]
[1763551943609,3.31629262,139.12,139.11,2.67999999]
[1763551944725,3.31629262,139.13,139.11,2.67999999]
[1763551945032,3.31629262,139.13,139.12,2.68999999]
[1763551945404,3.31629262,139.13,139.11,2.68999999]
[1763551945704,3.31629262,139.13,139.12,1.99999999]
[1763551945903,3.31629262,139.13,139.12,0.69]
[1763551946129,3.31629262,139.13,139.12,2.68999999]
[1763551946310,3.31629262,139.13,139.12,1.99999999]
[1763551948508,21.43725262,139.13,139.12,1.99999999]
[1763551949411,21.43725262,139.13,139.11,2.68999999]
[1763551949732,3.31629262,139.12,139.11,2.68999999]
[1763551954338,21.43725262,139.13,139.11,2.68999999]
[1763551954635,21.43725262,139.13,139.1,1.7]
[1763551954636,21.43725262,139.14,139.13,1.99999999]
[1763551954950,19.82096,139.17,139.13,1.99999999]
[1763551955113,3.31629262,139.14,139.13,1.99999999]
[1763551955512,18.0,139.23,139.13,1.99999999]
[1763551955513,18.0,139.23,139.14,1.99999999]
[1763551955825,3.31629262,139.17,139.15,1.99999999]
[1763551956028,3.31629262,139.17,139.16,1.99999999]
[1763551956234,21.43725262,139.17,139.16,1.99999999]
[1763551957019,3.31629262,139.17,139.16,1.99999999]
[1763551957330,3.31629262,139.17,139.16,2.68999999]
[1763551958655,21.43725262,139.17,139.16,2.68999999]
[1763551959236,3.31629262,139.18,139.17,1.99999999]
[1763551959540,21.43725262,139.18,139.17,1.99999999]
[1763551959743,21.43725262,139.18,139.17,2.68999999]
[1763551960847,3.31629262,139.22,139.21,1.99999999]
[1763551961542,3.31629262,139.22,139.16,3.31629262]
[1763551961543,18.12096,139.2,139.16,1.99999999]
[1763551961719,3.31629262,139.17,139.16,2.68999999]
[1763551961914,18.51096,139.2,139.16,2.68999999]
[1763551962229,3.31629262,139.18,139.16,1.99999999]
[1763551962634,3.31629262,139.17,139.16,1.99999999]
[1763551963644,3.31629262,139.17,139.16,2.68999999]
[1763551964544,3.31629262,139.17,139.16,1.99999999]
[1763551965347,3.31629262,139.17,139.15,1.99999999]
[1763551965549,3.31629262,139.16,139.15,1.99999999]
[1763551966043,0.39,139.22,139.19,1.99999999]
[1763551966233,3.31629262,139.2,139.19,1.99999999]
[1763551968744,3.31629262,139.21,139.2,1.99999999]
[1763551969252,3.31629262,139.21,139.2,2.68999999]
[1763551971147,3.31629262,139.21,139.2,1.99999999]
[1763551972337,3.31629262,139.21,139.2,2.68999999]
[1763551973329,5.74042652,139.31,139.23,1.99999999]
[1763551973544,3.31629262,139.24,139.23,1.99999999]
[1763551977653,3.31629262,139.24,139.22,1.99999999]
[1763551977867,18.12096,139.25,139.23,1.99999999]
[1763551978169,3.31629262,139.24,139.23,1.99999999]
[1763551979734,3.31629262,139.24,139.23,2.68999999]
[1763551980134,18.12096,139.25,139.23,2.68999999]
[1763551980360,1.7,139.27,139.23,1.99999999]
[1763551980535,18.51096,139.28,139.23,1.99999999]
[1763551980735,3.31629262,139.25,139.23,1.99999999]
[1763551980951,23.52725262,139.28,139.24,1.99999999]
[1763551981167,3.31629262,139.25,139.23,1.99999999]
[1763551981348,3.31629262,139.24,139.23,1.99999999]
[1763551981550,3.31629262,139.24,139.22,1.99999999]
[1763551981748,3.31629262,139.23,139.22,1.99999999]
[1763551981947,3.31629262,139.23,139.22,2.68999999]
[1763551982153,3.31629262,139.23,139.22,1.99999999]
[1763551982567,3.31629262,139.23,139.22,2.68999999]
[1763551982943,21.43725262,139.28,139.22,2.68999999]
[1763551983142,21.43725262,139.28,139.24,1.99999999]
[1763551983143,3.31629262,139.25,139.24,1.99999999]
[1763551983467,18.51096,139.28,139.25,1.99999999]
[1763551983764,3.31629262,139.26,139.25,1.99999999]
[1763551984768,2.11805747,139.26,139.25,1.99999999]
[1763551985742,2.11805747,139.26,139.25,2.68999999]
[1763551986461,19.82096,139.28,139.25,2.68999999]
[1763551986662,2.11805747,139.26,139.25,1.99999999]
[1763551986969,2.11805747,139.26,139.25,2.68999999]
[1763551987547,19.82096,139.28,139.25,2.68999999]
[1763551987747,2.11805747,139.26,139.25,2.68999999]
[1763551988560,2.11805747,139.27,139.25,2.68999999]
[1763551988861,1.9,139.29,139.27,1.99999999]
[1763551988862,0.2,139.29,139.27,1.99999999]
[1763551989056,2.11805747,139.28,139.27,1.99999999]
[1763551989260,0.59,139.29,139.27,1.99999999]
[1763551989469,2.11805747,139.28,139.26,1.99999999]
[1763551989668,0.39,139.28,139.25,1.99999999]
[1763551989971,2.11805747,139.26,139.25,1.99999999]
[1763551990344,18.71096,139.29,139.25,2.68999999]
[1763551990542,2.11805747,139.26,139.25,2.68999999]
[1763551991361,2.11805747,139.26,139.25,1.99999999]
[1763551991552,0.39,139.28,139.25,1.99999999]
[1763551991753,2.11805747,139.26,139.25,2.68999999]
[1763551992756,2.11805747,139.26,139.25,1.99999999]
[1763551992954,2.11805747,139.26,139.23,1.99999999]
[1763551992955,2.50805747,139.26,139.23,1.99999999]
[1763551993156,2.11805747,139.24,139.23,1.99999999]
[1763551993350,2.11805747,139.24,139.23,2.68999999]
[1763551994956,18.12096,139.26,139.25,1.99999999]
[1763551995171,20.23901747,139.26,139.25,1.99999999]
[1763551995378,20.62901747,139.26,139.24,1.99999999]
[1763551995562,2.11805747,139.25,139.24,1.99999999]
[1763551996082,18.12096,139.26,139.25,1.99999999]
[1763551996377,20.23901747,139.26,139.25,1.99999999]
[1763551998474,20.23901747,139.26,139.25,2.68999999]
[1763551999374,20.23901747,139.26,139.25,1.99999999]
[1763552000081,20.23901747,139.26,139.25,2.70999999]
[1763552000275,20.23901747,139.26,139.25,1.99999999]
[1763552000695,20.23901747,139.26,139.25,2.70999999]
[1763552001669,20.23901747,139.26,139.25,0.71]
[1763552001976,20.23901747,139.26,139.25,2.70999999]
[1763552003088,18.12096,139.26,139.25,2.70999999]
[1763552003587,20.23901747,139.26,139.25,2.70999999]
[1763552004184,2.29,139.29,139.25,2.70999999]
[1763552004375,2.29,139.29,139.19,9.78882769]
[1763552004376,1.9,139.29,139.26,2.67999999]
[1763552004689,18.12096,139.26,139.24,1.99999999]
[1763552004872,18.12096,139.26,139.25,1.99999999]
[1763552005863,2.11805747,139.26,139.24,2.67999999]
[1763552006065,2.11805747,139.25,139.24,2.67999999]
[1763552007093,2.11805747,139.25,139.24,1.99999999]
[1763552007776,2.11805747,139.25,139.24,2.67999999]
[1763552008797,0.2,139.29,139.25,1.99999999]
[1763552008798,0.59,139.29,139.25,1.99999999]
[1763552008993,1.9,139.29,139.25,1.99999999]
[1763552009201,1.9,139.29,139.27,1.99999999]
[1763552009866,2.29,139.29,139.27,1.99999999]
[1763552010069,2.29,139.29,139.25,0.68]
[1763552010070,0.39,139.28,139.26,1.99999999]
[1763552010390,18.12096,139.26,139.24,1.99999999]
[1763552010577,18.12096,139.26,139.23,1.99999999]
[1763552011079,18.12096,139.26,139.24,1.99999999]
[1763552011474,18.12096,139.26,139.24,2.67999999]
[1763552011782,18.32096,139.29,139.25,2.67999999]
[1763552012094,18.32096,139.29,139.27,1.99999999]
[1763552012286,0.2,139.29,139.27,1.99999999]
[1763552012593,0.2,139.29,139.28,0.68]
[1763552012789,0.2,139.29,139.28,2.67999999]
[1763552012994,2.31805747,139.29,139.28,2.67999999]
[1763552014194,2.31805747,139.29,139.28,1.99999999]
[1763552014395,0.2,139.29,139.27,1.99999999]
[1763552014601,0.2,139.29,139.27,2.67999999]
[1763552014892,0.2,139.29,139.28,2.67999999]
[1763552017092,2.31805747,139.29,139.28,2.67999999]
[1763552017692,0.2,139.29,139.28,2.67999999]
[1763552017872,2.31805747,139.29,139.28,2.67999999]
[1763552018295,0.2,139.29,139.28,2.67999999]
[1763552023905,0.2,139.29,139.28,12.46882768]
[1763552024205,0.2,139.29,139.28,2.67999999]
[1763552030297,2.31805747,139.29,139.28,1.99999999]
[1763552031105,2.31805747,139.29,139.28,2.69999999]
[1763552036606,2.70805747,139.29,139.28,1.99999999]
[1763552037290,2.70805747,139.29,139.27,1.99999999]
[1763552037486,10.98028735,139.28,139.25,1.99999999]
[1763552037695,2.11805747,139.26,139.25,1.99999999]
[1763552038903,2.11805747,139.27,139.25,2.69999999]
[1763552039099,2.11805747,139.27,139.26,2.69999999]
[1763552040719,2.11805747,139.27,139.26,1.99999999]
[1763552041992,0.59,139.29,139.26,1.99999999]
[1763552042197,2.11805747,139.27,139.26,2.69999999]
[1763552046930,3.30884427,139.27,139.26,2.69999999]
[1763552048425,0.2,139.29,139.27,1.99999999]
[1763552048739,3.30884427,139.28,139.27,2.69999999]
[1763552051431,0.2,139.29,139.28,1.99999999]
[1763552051606,0.2,139.29,139.28,2.69999999]
[1763552057427,18.32096,139.33,139.32,1.99999999]
[1763552057428,0.2,139.33,139.32,1.99999999]
[1763552057731,22.21980427,139.33,139.31,1.99999999]
[1763552057918,18.91096,139.33,139.32,1.99999999]
[1763552058114,21.62980427,139.33,139.32,1.99999999]
[1763552058630,3.50884427,139.33,139.32,1.99999999]
[1763552059009,3.50884427,139.33,139.32,2.69999999]
[1763552059204,0.2,139.33,139.32,2.69999999]
[1763552059631,3.50884427,139.33,139.32,2.69999999]
[1763552060234,3.50884427,139.33,139.32,1.99999999]
[1763552060408,4.09884427,139.33,139.32,1.99999999]
[1763552061131,3.50884427,139.33,139.32,1.99999999]
[1763552062015,3.50884427,139.33,139.32,2.71999999]
[1763552062329,22.21980427,139.33,139.31,1.99999999]
[1763552062526,3.89884427,139.32,139.31,1.99999999]
[1763552062728,0.59,139.32,139.31,1.99999999]
[1763552062932,3.89884427,139.32,139.31,1.99999999]
[1763552063615,3.89884427,139.32,139.31,0.3]
[1763552063815,3.89884427,139.32,139.26,1.7]
[1763552063816,3.30884427,139.32,139.27,0.7]
[1763552064029,3.30884427,139.29,139.25,29.34887296]
[1763552064519,3.30884427,139.3,139.25,32.65771723]
[1763552065035,3.30884427,139.31,139.26,13.09767196]
[1763552065540,3.30884427,139.31,139.27,3.30884427]
[1763552065917,3.30884427,139.31,139.27,0.7]
[1763552066127,3.30884427,139.31,139.28,0.7]
[1763552069228,3.50884427,139.33,139.28,4.00884427]
[1763552069430,3.50884427,139.33,139.29,0.7]
[1763552071142,3.50884427,139.33,139.29,2.4]
[1763552072429,0.2,139.33,139.3,13.79767196]
[1763552072816,0.2,139.33,139.31,0.7]
[1763552074645,0.2,139.33,139.3,9.78882769]
[1763552074942,0.2,139.33,139.3,10.48882769]
[1763552078947,0.2,139.33,139.31,0.7]
[1763552080148,3.30884427,139.32,139.29,2.4]
[1763552082331,3.50884427,139.33,139.3,0.7]
[1763552084260,3.30884427,139.32,139.29,1.7]
[1763552084433,0.85,139.33,139.29,1.7]
[1763552084434,3.50884427,139.33,139.29,1.7]
[1763552084635,3.50884427,139.33,139.3,0.7]
[1763552085030,0.2,139.33,139.3,4.00884427]
[1763552085238,0.2,139.33,139.31,3.30884427]
[1763552085440,0.2,139.33,139.32,5.00884427]
[1763552085644,0.2,139.33,139.32,5.70884427]
[1763552086047,0.2,139.33,139.32,15.49767196]
[1763552086362,0.2,139.33,139.32,2.4]
[1763552086545,0.2,139.33,139.32,5.70884427]
[1763552087162,0.2,139.33,139.32,2.4]
[1763552087544,0.2,139.33,139.32,5.70884427]
[1763552088561,0.2,139.33,139.32,2.4]
[1763552090259,0.2,139.33,139.32,5.70884427]
[1763552090642,0.2,139.33,139.32,2.4]
[1763552090854,0.88,139.33,139.32,1.7]
[1763552091243,4.18884427,139.33,139.32,1.7]
[1763552093068,4.18884427,139.33,139.28,0.71]
[1763552093259,3.98884427,139.32,139.29,2.41]
[1763552093943,3.30884427,139.32,139.3,0.71]
[1763552095267,3.50884427,139.33,139.3,0.71]
[1763552097463,0.2,139.33,139.3,0.71]
[1763552099671,3.50884427,139.33,139.3,0.71]
[1763552100569,4.18884427,139.33,139.3,0.71]
[1763552100872,3.30884427,139.32,139.3,0.71]
[1763552101566,3.98884427,139.31,139.29,1.7]
[1763552101763,0.2,139.33,139.29,1.7]
[1763552101764,3.98884427,139.3,139.29,1.7]
[1763552102145,3.30884427,139.3,139.29,1.7]
[1763552103076,3.98884427,139.3,139.29,1.7]
[1763552103263,0.68,139.32,139.29,1.7]
[1763552103461,3.30884427,139.3,139.29,1.7]
[1763552103779,3.30884427,139.31,139.29,1.7]
[1763552104152,0.2,139.33,139.29,2.41]
[1763552104353,4.18884427,139.33,139.3,0.71]
[1763552104561,0.2,139.33,139.3,0.71]
[1763552105362,4.18884427,139.33,139.3,0.71]
[1763552105865,3.50884427,139.33,139.3,0.71]
[1763552106073,0.2,139.33,139.3,0.71]
[1763552107577,0.2,139.33,139.3,2.82546842]
[1763552107977,0.2,139.33,139.31,0.71]
[1763552108684,2.31546842,139.33,139.31,0.71]
[1763552108867,2.31546842,139.33,139.29,1.7]
[1763552108868,2.99546842,139.33,139.29,1.7]
[1763552109182,2.11546842,139.32,139.3,0.71]
[1763552109381,2.31546842,139.33,139.3,0.71]
[1763552109762,2.99546842,139.33,139.3,0.71]
[1763552110072,2.11546842,139.31,139.29,1.7]
[1763552110280,2.11546842,139.3,139.29,1.7]
[1763552110673,0.2,139.33,139.29,1.7]
[1763552110985,2.11546842,139.3,139.29,1.7]
[1763552111280,2.11546842,139.31,139.29,1.7]
[1763552111861,2.79546842,139.31,139.29,1.7]
[1763552112066,0.68,139.3,139.29,1.7]
[1763552112283,2.79546842,139.31,139.28,1.7]
[1763552112663,2.11546842,139.31,139.28,1.7]
[1763552112870,0.68,139.32,139.29,0.71]
[1763552113057,2.99546842,139.33,139.29,0.71]
[1763552113385,0.68,139.32,139.29,0.71]
[1763552113581,2.99546842,139.33,139.29,0.71]
[1763552113978,0.2,139.33,139.29,2.82546842]
[1763552114179,0.2,139.33,139.3,2.82546842]
[1763552114376,0.2,139.33,139.31,1.7]
[1763552114577,0.2,139.33,139.31,2.41]
[1763552115186,0.2,139.33,139.31,1.7]
[1763552115492,0.2,139.33,139.31,2.41]
[1763552119497,0.2,139.33,139.32,0.71]
[1763552120294,0.2,139.33,139.31,2.42]
[1763552120830,0.2,139.33,139.32,0.72]
[1763552121295,0.2,139.33,139.32,2.83546842]
[1763552126307,0.2,139.33,139.32,30.74525611]
[1763552126477,0.2,139.33,139.32,12.62429611]
[1763552126676,0.2,139.33,139.32,15.50085574]
[1763552127999,0.2,139.33,139.32,33.62181574]
[1763552129476,0.2,139.33,139.32,30.74525611]
[1763552129904,0.2,139.33,139.32,28.62978769]
[1763552130090,0.2,139.33,139.32,30.74525611]